[Event "*** Titled Tuesday Blitz"]
[Site "Chess.com"]
[Date "2021.04.06"]
[Round "6"]
[White "HackingKid98"]
[Black "elextranjero00"]
[Result "1-0"]
[WhiteElo "2490"]
[BlackElo "2581"]
[TimeControl "180+1"]
[EndTime "11:09:03 PDT"]
[Termination "HackingKid98 won by resignation"]

1. Nf3 {[%clk 0:03:00.9]} 1... d5 {[%clk 0:02:57.9]} 2. d4 {[%clk 0:03:00.5]}
2... Nf6 {[%clk 0:02:54.6]} 3. c4 {[%clk 0:03:00.5]} 3... e6 {[%clk 0:02:52.1]}
4. g3 {[%clk 0:02:59.9]} 4... Bb4+ {[%clk 0:02:50.1]} 5. Bd2 {[%clk 0:02:59.3]}
5... Be7 {[%clk 0:02:46.8]} 6. Qc2 {[%clk 0:02:59]} 6... c6 {[%clk 0:02:44.4]}
7. Bg2 {[%clk 0:02:59.5]} 7... O-O {[%clk 0:02:43.4]} 8. O-O {[%clk 0:02:59.2]}
8... Nbd7 {[%clk 0:02:37.2]} 9. b3 {[%clk 0:02:42.8]} 9... b6 {[%clk 0:02:26.5]}
10. Nc3 {[%clk 0:02:41.3]} 10... Ba6 {[%clk 0:02:25]} 11. e4 {[%clk 0:02:35.3]}
11... dxc4 {[%clk 0:02:14.8]} 12. Rfd1 {[%clk 0:02:13]} 12... Rc8 {[%clk
0:02:10.7]} 13. Bf4 {[%clk 0:01:59.4]} 13... Qe8 {[%clk 0:01:45.3]} 14. h3
{[%clk 0:01:39.7]} 14... h6 {[%clk 0:01:34.2]} 15. g4 {[%clk 0:01:39.1]} 15...
Bb4 {[%clk 0:01:14.3]} 16. Ne5 {[%clk 0:01:17.6]} 16... Nxe5 {[%clk 0:01:03.9]}
17. Bxe5 {[%clk 0:01:18.5]} 17... Nd7 {[%clk 0:01:00.2]} 18. Bg3 {[%clk
0:01:14]} 18... e5 {[%clk 0:00:44.7]} 19. dxe5 {[%clk 0:01:00]} 19... Nxe5
{[%clk 0:00:38.7]} 20. f4 {[%clk 0:00:59.9]} 20... Nd3 {[%clk 0:00:34.1]} 21.
bxc4 {[%clk 0:00:58.5]} 21... Nc5 {[%clk 0:00:24.2]} 22. e5 {[%clk 0:00:40.5]}
22... Bxc4 {[%clk 0:00:20.3]} 23. Ne4 {[%clk 0:00:40.1]} 23... Bd5 {[%clk
0:00:18.6]} 24. Nd6 {[%clk 0:00:39.6]} 24... Qe7 {[%clk 0:00:16.8]} 25. Nxc8
{[%clk 0:00:38.2]} 25... Rxc8 {[%clk 0:00:13.5]} 26. Bxd5 {[%clk 0:00:37.9]}
26... cxd5 {[%clk 0:00:13.9]} 27. Rxd5 {[%clk 0:00:38.8]} 27... Re8 {[%clk
0:00:07.6]} 28. Rad1 {[%clk 0:00:37.9]} 28... h5 {[%clk 0:00:06.5]} 29. Qc4
{[%clk 0:00:36.2]} 29... Ba5 {[%clk 0:00:06.5]} 30. f5 {[%clk 0:00:31.3]} 30...
hxg4 {[%clk 0:00:06]} 31. Qxg4 {[%clk 0:00:32.2]} 31... Bc3 {[%clk 0:00:03.8]}
32. f6 {[%clk 0:00:31.3]} 32... Qf8 {[%clk 0:00:04.4]} 33. h4 {[%clk 0:00:27.8]}
33... Ne6 {[%clk 0:00:04.1]} 34. h5 {[%clk 0:00:25.8]} 34... Qb4 {[%clk
0:00:03.1]} 35. Qxb4 {[%clk 0:00:22.9]} 35... Bxb4 {[%clk 0:00:04]} 36. Rd7
{[%clk 0:00:21.7]} 36... Bc5+ {[%clk 0:00:04.2]} 37. Kg2 {[%clk 0:00:21]} 37...
a5 {[%clk 0:00:04.7]} 38. Rb7 {[%clk 0:00:20.3]} 38... gxf6 {[%clk 0:00:04.7]}
39. exf6 {[%clk 0:00:20.2]} 39... Nd4 {[%clk 0:00:05.1]} 40. Bf2 {[%clk
0:00:19]} 40... Re2 {[%clk 0:00:05]} 41. Kf1 {[%clk 0:00:19]} 41... Re4 {[%clk
0:00:04.1]} 42. Bxd4 {[%clk 0:00:18.4]} 42... Bxd4 {[%clk 0:00:05]} 43. Kg2
{[%clk 0:00:17]} 43... Bxf6 {[%clk 0:00:03.6]} 44. Rdd7 {[%clk 0:00:16.2]} 44...
Be5 {[%clk 0:00:01.9]} 45. Rxf7 {[%clk 0:00:15.2]} 45... Re2+ {[%clk 0:00:01.9]}
46. Kf3 {[%clk 0:00:15]} 46... Rxa2 {[%clk 0:00:02.6]} 47. Ke4 {[%clk
0:00:14.6]} 47... Re2+ {[%clk 0:00:02.3]} 48. Kd5 {[%clk 0:00:14.2]} 48... Re1
{[%clk 0:00:03]} 49. Rfe7 {[%clk 0:00:12.9]} 49... Rd1+ {[%clk 0:00:02.4]} 50.
Kxe5 {[%clk 0:00:12.4]} 50... Rd8 {[%clk 0:00:02.3]} 51. Kf6 {[%clk 0:00:11.4]}
1-0

[Event "*** Titled Tuesday Blitz"]
[Site "Chess.com"]
[Date "2021.04.06"]
[Round "6"]
[White "guillembaches"]
[Black "moro182"]
[Result "0-1"]
[WhiteElo "2508"]
[BlackElo "2747"]
[TimeControl "180+1"]
[EndTime "11:09:04 PDT"]
[Termination "moro182 won on time"]

1. e4 {[%clk 0:03:00.9]} 1... g6 {[%clk 0:03:00.9]} 2. d4 {[%clk 0:02:59.3]}
2... Bg7 {[%clk 0:03:01.8]} 3. Be3 {[%clk 0:02:58.6]} 3... d6 {[%clk 0:03:02]}
4. Qd2 {[%clk 0:02:58.6]} 4... Nf6 {[%clk 0:03:01.9]} 5. f3 {[%clk 0:02:56.8]}
5... O-O {[%clk 0:02:59.1]} 6. Bh6 {[%clk 0:02:53.7]} 6... c5 {[%clk 0:02:55.2]}
7. d5 {[%clk 0:02:50.2]} 7... e6 {[%clk 0:02:53]} 8. Bxg7 {[%clk 0:02:41.5]}
8... Kxg7 {[%clk 0:02:53]} 9. Nc3 {[%clk 0:02:34.2]} 9... exd5 {[%clk
0:02:51.5]} 10. Nxd5 {[%clk 0:02:31.4]} 10... Nxd5 {[%clk 0:02:42.5]} 11. Qxd5
{[%clk 0:02:22.7]} 11... Be6 {[%clk 0:02:39.9]} 12. Qd2 {[%clk 0:02:12.2]} 12...
Nc6 {[%clk 0:02:37.7]} 13. Ne2 {[%clk 0:02:07.4]} 13... d5 {[%clk 0:02:34.6]}
14. exd5 {[%clk 0:02:04.3]} 14... Qxd5 {[%clk 0:02:33.7]} 15. Qxd5 {[%clk
0:01:56.6]} 15... Bxd5 {[%clk 0:02:34.6]} 16. Nf4 {[%clk 0:01:48.3]} 16... Rfe8+
{[%clk 0:02:29.8]} 17. Kf2 {[%clk 0:01:44.5]} 17... Rad8 {[%clk 0:02:23.3]} 18.
Bb5 {[%clk 0:01:32.1]} 18... a6 {[%clk 0:02:18.5]} 19. Bxc6 {[%clk 0:01:16.1]}
19... Bxc6 {[%clk 0:02:19.4]} 20. Rad1 {[%clk 0:01:15.1]} 20... Bb5 {[%clk
0:02:14.5]} 21. Rhe1 {[%clk 0:01:05.2]} 21... Rxe1 {[%clk 0:01:57.3]} 22. Kxe1
{[%clk 0:00:47.3]} 22... Re8+ {[%clk 0:01:56.2]} 23. Kf2 {[%clk 0:00:42.3]}
23... g5 {[%clk 0:01:55.5]} 24. Nd3 {[%clk 0:00:40.2]} 24... c4 {[%clk 0:01:51]}
25. Nc1 {[%clk 0:00:37.1]} 25... Re7 {[%clk 0:01:35.8]} 26. Ne2 {[%clk 0:00:37]}
26... h5 {[%clk 0:01:32.2]} 27. Nc3 {[%clk 0:00:37]} 27... Bc6 {[%clk
0:01:31.6]} 28. Rd4 {[%clk 0:00:34.9]} 28... b5 {[%clk 0:01:31.1]} 29. Rd6
{[%clk 0:00:34.9]} 29... Bb7 {[%clk 0:01:30.9]} 30. Ne4 {[%clk 0:00:30.5]} 30...
Bxe4 {[%clk 0:01:23.9]} 31. fxe4 {[%clk 0:00:31.4]} 31... Rxe4 {[%clk
0:01:19.4]} 32. Rxa6 {[%clk 0:00:30.9]} 32... Rd4 {[%clk 0:01:19.1]} 33. Ke2
{[%clk 0:00:27.4]} 33... Re4+ {[%clk 0:01:18.7]} 34. Kf2 {[%clk 0:00:27.6]}
34... Re5 {[%clk 0:00:49]} 35. Ra5 {[%clk 0:00:23.9]} 35... Rd5 {[%clk
0:00:42.7]} 36. Ke2 {[%clk 0:00:22.8]} 36... Re5+ {[%clk 0:00:42.8]} 37. Kf2
{[%clk 0:00:23.1]} 37... Rf5+ {[%clk 0:00:42.5]} 38. Ke2 {[%clk 0:00:23.4]}
38... Kg6 {[%clk 0:00:38.6]} 39. b3 {[%clk 0:00:19.3]} 39... cxb3 {[%clk
0:00:32.1]} 40. cxb3 {[%clk 0:00:18.9]} 40... Re5+ {[%clk 0:00:31]} 41. Kf2
{[%clk 0:00:19.2]} 41... Rc5 {[%clk 0:00:29.8]} 42. a4 {[%clk 0:00:17.7]} 42...
Rc2+ {[%clk 0:00:29.2]} 43. Kf1 {[%clk 0:00:17.9]} 43... Rc1+ {[%clk 0:00:28.5]}
44. Kf2 {[%clk 0:00:17.9]} 44... Rc2+ {[%clk 0:00:28.8]} 45. Kf1 {[%clk
0:00:18.3]} 45... bxa4 {[%clk 0:00:29.2]} 46. bxa4 {[%clk 0:00:18]} 46... Ra2
{[%clk 0:00:29.1]} 47. g3 {[%clk 0:00:17.6]} 47... f6 {[%clk 0:00:27.2]} 48. Kg1
{[%clk 0:00:16.9]} 48... Kf7 {[%clk 0:00:21.4]} 49. Ra6 {[%clk 0:00:17]} 49...
Kg6 {[%clk 0:00:21]} 50. Ra5 {[%clk 0:00:16.2]} 50... g4 {[%clk 0:00:20.2]} 51.
Ra6 {[%clk 0:00:15.8]} 51... Kf5 {[%clk 0:00:19.4]} 52. Ra5+ {[%clk 0:00:16.3]}
52... Ke4 {[%clk 0:00:18.9]} 53. Rxh5 {[%clk 0:00:15.7]} 53... f5 {[%clk
0:00:19.2]} 54. Rh8 {[%clk 0:00:15]} 54... Kf3 {[%clk 0:00:19.3]} 55. h4 {[%clk
0:00:12.3]} 55... Kxg3 {[%clk 0:00:18.5]} 56. Kf1 {[%clk 0:00:12.1]} 56... f4
{[%clk 0:00:18.6]} 57. Ke1 {[%clk 0:00:08.9]} 57... f3 {[%clk 0:00:18.5]} 58. h5
{[%clk 0:00:09.4]} 58... f2+ {[%clk 0:00:17.8]} 59. Kf1 {[%clk 0:00:09.9]} 59...
Ra1+ {[%clk 0:00:17.6]} 0-1

[Event "*** Titled Tuesday Blitz"]
[Site "Chess.com"]
[Date "2021.04.06"]
[Round "6"]
[White "XDPS"]
[Black "AlexSuv"]
[Result "1-0"]
[WhiteElo "2747"]
[BlackElo "2575"]
[TimeControl "180+1"]
[EndTime "11:09:09 PDT"]
[Termination "XDPS won by resignation"]

1. e4 {[%clk 0:03:00.9]} 1... c5 {[%clk 0:02:53.9]} 2. Nf3 {[%clk 0:02:59.1]}
2... e6 {[%clk 0:02:53.3]} 3. d4 {[%clk 0:02:58.5]} 3... cxd4 {[%clk 0:02:54.2]}
4. Nxd4 {[%clk 0:02:56.8]} 4... Nc6 {[%clk 0:02:53.8]} 5. Nb5 {[%clk 0:02:53.1]}
5... d6 {[%clk 0:02:52.7]} 6. c4 {[%clk 0:02:52.2]} 6... Nf6 {[%clk 0:02:52.9]}
7. N1c3 {[%clk 0:02:50.5]} 7... a6 {[%clk 0:02:52.8]} 8. Na3 {[%clk 0:02:50.2]}
8... Be7 {[%clk 0:02:53.4]} 9. Be2 {[%clk 0:02:40.8]} 9... O-O {[%clk
0:02:52.3]} 10. O-O {[%clk 0:02:41.3]} 10... b6 {[%clk 0:02:51.5]} 11. Be3
{[%clk 0:02:41.4]} 11... Bb7 {[%clk 0:02:51.7]} 12. Qb3 {[%clk 0:02:36.8]} 12...
Ne5 {[%clk 0:02:51.5]} 13. Bxb6 {[%clk 0:02:34.2]} 13... Qc8 {[%clk 0:02:31.1]}
14. f3 {[%clk 0:02:33.6]} 14... Rb8 {[%clk 0:02:28.1]} 15. Ba7 {[%clk
0:02:30.8]} 15... Ra8 {[%clk 0:02:12.2]} 16. Be3 {[%clk 0:02:28.7]} 16... Rd8
{[%clk 0:02:12.5]} 17. Rfd1 {[%clk 0:02:28.3]} 17... Bc6 {[%clk 0:02:06.7]} 18.
Kh1 {[%clk 0:02:26.6]} 18... Rb8 {[%clk 0:02:06.3]} 19. Qc2 {[%clk 0:02:26.7]}
19... Qb7 {[%clk 0:01:53.3]} 20. Rab1 {[%clk 0:02:26.2]} 20... d5 {[%clk
0:01:51.7]} 21. cxd5 {[%clk 0:02:23.3]} 21... exd5 {[%clk 0:01:51.9]} 22. exd5
{[%clk 0:02:23.8]} 22... Nxd5 {[%clk 0:01:52]} 23. Nxd5 {[%clk 0:02:23.9]} 23...
Bxd5 {[%clk 0:01:48.2]} 24. Nc4 {[%clk 0:01:40.4]} 24... Rbc8 {[%clk 0:00:45.9]}
25. b3 {[%clk 0:01:38]} 25... Bxc4 {[%clk 0:00:29.7]} 26. bxc4 {[%clk
0:01:36.5]} 26... Rxd1+ {[%clk 0:00:29.7]} 27. Qxd1 {[%clk 0:01:30.3]} 27... Qc7
{[%clk 0:00:21.8]} 28. Bb6 {[%clk 0:01:15.2]} 28... Qc6 {[%clk 0:00:20.5]} 29.
Bg1 {[%clk 0:00:38]} 29... Bc5 {[%clk 0:00:16.5]} 30. Bxc5 {[%clk 0:00:29.9]}
30... Qxc5 {[%clk 0:00:17.4]} 31. Qa4 {[%clk 0:00:30.5]} 31... a5 {[%clk
0:00:12.7]} 32. Qb5 {[%clk 0:00:20]} 32... g5 {[%clk 0:00:09.3]} 33. Qxc5 {[%clk
0:00:18]} 33... Rxc5 {[%clk 0:00:10.2]} 34. Rb5 {[%clk 0:00:18.9]} 34... Nd7
{[%clk 0:00:10.7]} 35. Kg1 {[%clk 0:00:18.1]} 35... Kg7 {[%clk 0:00:10.7]} 36.
Kf2 {[%clk 0:00:18.2]} 36... Kf6 {[%clk 0:00:11.3]} 37. Ke3 {[%clk 0:00:18.7]}
37... Ke5 {[%clk 0:00:11.9]} 38. g3 {[%clk 0:00:19.3]} 38... Rxb5 {[%clk
0:00:11.1]} 39. cxb5 {[%clk 0:00:19.3]} 39... Kd5 {[%clk 0:00:09.5]} 40. f4
{[%clk 0:00:17.4]} 40... f6 {[%clk 0:00:09.9]} 41. Bf3+ {[%clk 0:00:14.2]} 41...
Kc5 {[%clk 0:00:09.6]} 42. Bc6 {[%clk 0:00:14.9]} 42... Nb6 {[%clk 0:00:08.9]}
43. Ke4 {[%clk 0:00:15]} 43... a4 {[%clk 0:00:08]} 44. Kf5 {[%clk 0:00:15]}
44... gxf4 {[%clk 0:00:08.1]} 45. gxf4 {[%clk 0:00:15.1]} 45... a3 {[%clk
0:00:04.5]} 46. Kxf6 {[%clk 0:00:14.9]} 46... Na4 {[%clk 0:00:05]} 47. Be8
{[%clk 0:00:13.5]} 47... Nc3 {[%clk 0:00:05]} 48. Bf7 {[%clk 0:00:13.5]} 48...
Kxb5 {[%clk 0:00:04]} 49. Kg7 {[%clk 0:00:12.2]} 49... Kc5 {[%clk 0:00:03.3]}
50. f5 {[%clk 0:00:12.6]} 50... Kd4 {[%clk 0:00:02.8]} 51. f6 {[%clk 0:00:11.4]}
51... Ke5 {[%clk 0:00:03.2]} 52. Bb3 {[%clk 0:00:11.7]} 52... Ne4 {[%clk
0:00:01.8]} 53. f7 {[%clk 0:00:11.8]} 53... Ng5 {[%clk 0:00:02.3]} 54. f8=Q
{[%clk 0:00:12]} 54... Ne6+ {[%clk 0:00:02.7]} 55. Bxe6 {[%clk 0:00:12.7]} 1-0

[Event "*** Titled Tuesday Blitz"]
[Site "Chess.com"]
[Date "2021.04.06"]
[Round "6"]
[White "The_filthy"]
[Black "sergeikim"]
[Result "1-0"]
[WhiteElo "2386"]
[BlackElo "2523"]
[TimeControl "180+1"]
[EndTime "11:09:14 PDT"]
[Termination "The_filthy won on time"]

1. e4 {[%clk 0:03:00.9]} 1... e5 {[%clk 0:02:58.7]} 2. Nf3 {[%clk 0:03:01.4]}
2... Nc6 {[%clk 0:02:57.6]} 3. Bb5 {[%clk 0:03:01.4]} 3... a6 {[%clk 0:02:57.1]}
4. Ba4 {[%clk 0:03:01]} 4... Nf6 {[%clk 0:02:57]} 5. d3 {[%clk 0:03:01.3]} 5...
b5 {[%clk 0:02:56.8]} 6. Bb3 {[%clk 0:03:01.2]} 6... Bc5 {[%clk 0:02:57.3]} 7.
Nc3 {[%clk 0:02:53.9]} 7... d6 {[%clk 0:02:56.8]} 8. a3 {[%clk 0:02:52.7]} 8...
h6 {[%clk 0:02:56.3]} 9. h3 {[%clk 0:02:52.7]} 9... O-O {[%clk 0:02:55.9]} 10.
g4 {[%clk 0:02:45.3]} 10... Be6 {[%clk 0:02:43.7]} 11. g5 {[%clk 0:02:42.3]}
11... hxg5 {[%clk 0:02:33.2]} 12. Bxg5 {[%clk 0:02:42.5]} 12... Nd4 {[%clk
0:02:23.1]} 13. Nxd4 {[%clk 0:02:40.6]} 13... Bxd4 {[%clk 0:02:08.8]} 14. Qf3
{[%clk 0:02:30]} 14... Bxc3+ {[%clk 0:01:56.1]} 15. bxc3 {[%clk 0:02:28.7]}
15... Bxb3 {[%clk 0:01:30.2]} 16. cxb3 {[%clk 0:02:27.5]} 16... Re8 {[%clk
0:01:30.6]} 17. Rg1 {[%clk 0:02:22]} 17... Re6 {[%clk 0:01:30.3]} 18. d4 {[%clk
0:02:16.7]} 18... exd4 {[%clk 0:01:28.3]} 19. cxd4 {[%clk 0:02:15.3]} 19...
Rxe4+ {[%clk 0:01:23.9]} 20. Qxe4 {[%clk 0:02:14.4]} 20... Nxe4 {[%clk
0:01:23.1]} 21. Bxd8 {[%clk 0:02:14.9]} 21... Rxd8 {[%clk 0:01:23.4]} 22. f3
{[%clk 0:02:04.4]} 22... Nf6 {[%clk 0:01:18.5]} 23. Rc1 {[%clk 0:02:00.2]} 23...
Re8+ {[%clk 0:01:03.7]} 24. Kf2 {[%clk 0:01:59.1]} 24... Nd5 {[%clk 0:00:59.5]}
25. Rge1 {[%clk 0:01:47.1]} 25... Ra8 {[%clk 0:00:49.3]} 26. Rc6 {[%clk
0:01:41.9]} 26... Kf8 {[%clk 0:00:48.9]} 27. h4 {[%clk 0:01:23.3]} 27... Ra7
{[%clk 0:00:47.3]} 28. h5 {[%clk 0:01:22.2]} 28... Ne7 {[%clk 0:00:45.9]} 29.
Rc2 {[%clk 0:01:15.4]} 29... Nf5 {[%clk 0:00:43.9]} 30. Rd1 {[%clk 0:01:06.9]}
30... Ke7 {[%clk 0:00:39.7]} 31. f4 {[%clk 0:00:58.4]} 31... Kd7 {[%clk
0:00:35.9]} 32. Kf3 {[%clk 0:00:58.3]} 32... Ra8 {[%clk 0:00:31.3]} 33. Ke4
{[%clk 0:00:52.9]} 33... g6 {[%clk 0:00:29.2]} 34. hxg6 {[%clk 0:00:52.8]} 34...
fxg6 {[%clk 0:00:29.1]} 35. Rh2 {[%clk 0:00:47.8]} 35... Re8+ {[%clk 0:00:28.2]}
36. Kd3 {[%clk 0:00:46.8]} 36... Re3+ {[%clk 0:00:24.2]} 37. Kc2 {[%clk
0:00:46.5]} 37... Re7 {[%clk 0:00:23.1]} 38. Kb2 {[%clk 0:00:39]} 38... Kc6
{[%clk 0:00:19.9]} 39. Rc2+ {[%clk 0:00:35]} 39... Kd5 {[%clk 0:00:18.1]} 40.
Rdc1 {[%clk 0:00:35.4]} 40... Nxd4 {[%clk 0:00:15]} 41. Rxc7 {[%clk 0:00:35.2]}
41... Re2+ {[%clk 0:00:14.4]} 42. Kb1 {[%clk 0:00:31.2]} 42... Nxb3 {[%clk
0:00:12.2]} 43. Rd1+ {[%clk 0:00:31.2]} 43... Rd2 {[%clk 0:00:08.7]} 44. Rxd2+
{[%clk 0:00:26.6]} 44... Nxd2+ {[%clk 0:00:08.4]} 45. Kc2 {[%clk 0:00:27.5]}
45... Nc4 {[%clk 0:00:08.2]} 46. Rg7 {[%clk 0:00:27.3]} 46... Nxa3+ {[%clk
0:00:07.1]} 47. Kb3 {[%clk 0:00:26.9]} 47... Nc4 {[%clk 0:00:06.7]} 48. Rxg6
{[%clk 0:00:27.4]} 48... Ke4 {[%clk 0:00:07]} 49. Rf6 {[%clk 0:00:25.2]} 49...
d5 {[%clk 0:00:05.2]} 50. Rxa6 {[%clk 0:00:24.9]} 50... Kxf4 {[%clk 0:00:04.8]}
51. Kb4 {[%clk 0:00:23.2]} 51... Ke4 {[%clk 0:00:04.5]} 52. Kxb5 {[%clk
0:00:22]} 52... Ne5 {[%clk 0:00:03.9]} 53. Ra1 {[%clk 0:00:21.1]} 53... d4
{[%clk 0:00:03.8]} 54. Re1+ {[%clk 0:00:18.9]} 54... Kd5 {[%clk 0:00:03.9]} 55.
Rd1 {[%clk 0:00:16]} 55... Ke4 {[%clk 0:00:03.3]} 56. Kc5 {[%clk 0:00:14.7]}
56... d3 {[%clk 0:00:02.8]} 57. Kb4 {[%clk 0:00:13.3]} 57... Ke3 {[%clk
0:00:02.5]} 58. Kc3 {[%clk 0:00:13.2]} 58... Ke2 {[%clk 0:00:01.4]} 59. Rd2+
{[%clk 0:00:12.9]} 1-0

[Event "*** Titled Tuesday Blitz"]
[Site "Chess.com"]
[Date "2021.04.06"]
[Round "6"]
[White "Rafael_Ventura"]
[Black "kuba2006"]
[Result "0-1"]
[WhiteElo "2166"]
[BlackElo "2333"]
[TimeControl "180+1"]
[EndTime "11:09:16 PDT"]
[Termination "kuba2006 won by resignation"]

1. e4 {[%clk 0:03:00.9]} 1... Nf6 {[%clk 0:03:00.9]} 2. e5 {[%clk 0:03:01.1]}
2... Nd5 {[%clk 0:03:00]} 3. d4 {[%clk 0:03:01.7]} 3... d6 {[%clk 0:02:59.2]} 4.
c4 {[%clk 0:03:02.4]} 4... Nb6 {[%clk 0:02:57.8]} 5. exd6 {[%clk 0:03:03]} 5...
exd6 {[%clk 0:02:56.8]} 6. Nc3 {[%clk 0:03:03.6]} 6... Be7 {[%clk 0:02:55.9]} 7.
Be3 {[%clk 0:03:03.9]} 7... O-O {[%clk 0:02:55.1]} 8. Rc1 {[%clk 0:03:04.2]}
8... Bf6 {[%clk 0:02:53.8]} 9. Be2 {[%clk 0:03:04.3]} 9... Nc6 {[%clk
0:02:50.7]} 10. b3 {[%clk 0:03:03.4]} 10... Re8 {[%clk 0:02:40.9]} 11. d5 {[%clk
0:02:58.2]} 11... Ne7 {[%clk 0:02:30.6]} 12. Nh3 {[%clk 0:02:52.1]} 12... Bxh3
{[%clk 0:02:25.8]} 13. gxh3 {[%clk 0:02:51.5]} 13... Nf5 {[%clk 0:02:25.7]} 14.
Bf4 {[%clk 0:02:45]} 14... g6 {[%clk 0:02:19.3]} 15. O-O {[%clk 0:02:41.4]}
15... Be5 {[%clk 0:02:11.3]} 16. Bg3 {[%clk 0:02:34.4]} 16... Nd7 {[%clk
0:01:57.6]} 17. Bd3 {[%clk 0:02:16.6]} 17... Nxg3 {[%clk 0:01:20.2]} 18. hxg3
{[%clk 0:02:14.3]} 18... Nc5 {[%clk 0:01:20.3]} 19. Bb1 {[%clk 0:02:04.5]} 19...
Qg5 {[%clk 0:01:15.2]} 20. Qf3 {[%clk 0:01:53.2]} 20... a5 {[%clk 0:01:02.9]}
21. h4 {[%clk 0:01:47.3]} 21... Qf6 {[%clk 0:01:00.3]} 22. Kg2 {[%clk
0:01:35.2]} 22... Re7 {[%clk 0:00:50.5]} 23. Ne2 {[%clk 0:01:16.1]} 23... Rae8
{[%clk 0:00:40.1]} 24. Qxf6 {[%clk 0:01:12.3]} 24... Bxf6 {[%clk 0:00:41]} 25.
Nf4 {[%clk 0:01:12.8]} 25... Bg7 {[%clk 0:00:31.4]} 26. Kf3 {[%clk 0:01:02.2]}
26... Bh6 {[%clk 0:00:31]} 27. Rc2 {[%clk 0:00:48.6]} 27... Bxf4 {[%clk
0:00:28.7]} 28. Kxf4 {[%clk 0:00:49.1]} 28... Nd3+ {[%clk 0:00:23.6]} 29. Kg4
{[%clk 0:00:45.4]} 29... f5+ {[%clk 0:00:17.8]} 30. Kh3 {[%clk 0:00:45.5]} 30...
Nc5 {[%clk 0:00:15.7]} 31. Kg2 {[%clk 0:00:43]} 31... Re2 {[%clk 0:00:15.3]} 32.
Rfc1 {[%clk 0:00:42.9]} 32... Rxc2 {[%clk 0:00:11.4]} 33. Bxc2 {[%clk
0:00:43.1]} 33... Re2 {[%clk 0:00:10.6]} 34. Kf3 {[%clk 0:00:43.7]} 34... Re5
{[%clk 0:00:10.6]} 35. Rd1 {[%clk 0:00:39.4]} 35... Kg7 {[%clk 0:00:10.1]} 36.
a3 {[%clk 0:00:36.8]} 36... b6 {[%clk 0:00:09]} 37. b4 {[%clk 0:00:36.8]} 37...
axb4 {[%clk 0:00:09.9]} 38. axb4 {[%clk 0:00:37.7]} 38... Nd7 {[%clk 0:00:09.2]}
39. Ra1 {[%clk 0:00:34.4]} 39... Re7 {[%clk 0:00:09]} 40. Kg2 {[%clk 0:00:32.8]}
40... Ne5 {[%clk 0:00:08.8]} 41. Bb3 {[%clk 0:00:32.3]} 41... Nd3 {[%clk
0:00:08.7]} 42. Bd1 {[%clk 0:00:27.1]} 42... Nxb4 {[%clk 0:00:07.8]} 43. Ra7
{[%clk 0:00:24.4]} 43... Kf6 {[%clk 0:00:07.1]} 44. Ra4 {[%clk 0:00:20.2]} 44...
Nd3 {[%clk 0:00:06.6]} 45. Bc2 {[%clk 0:00:20.5]} 45... Ne1+ {[%clk 0:00:06.4]}
46. Kf1 {[%clk 0:00:21.1]} 46... Nxc2 {[%clk 0:00:07.3]} 47. Ra2 {[%clk
0:00:21.7]} 47... Nd4 {[%clk 0:00:07]} 48. Rd2 {[%clk 0:00:22.3]} 48... Nb3
{[%clk 0:00:07.2]} 49. Rd3 {[%clk 0:00:22.7]} 49... Nc5 {[%clk 0:00:08.1]} 50.
Ra3 {[%clk 0:00:22.7]} 50... Ke5 {[%clk 0:00:07.7]} 51. Re3+ {[%clk 0:00:22]}
51... Kf6 {[%clk 0:00:08]} 52. Ra3 {[%clk 0:00:22.7]} 52... Ne4 {[%clk
0:00:05.5]} 53. Kg2 {[%clk 0:00:22]} 53... Nd2 {[%clk 0:00:05.4]} 54. Rc3 {[%clk
0:00:22.4]} 54... Re4 {[%clk 0:00:05.1]} 55. Ra3 {[%clk 0:00:19.3]} 55... Nxc4
{[%clk 0:00:05.1]} 56. Ra7 {[%clk 0:00:19.4]} 56... Re7 {[%clk 0:00:05.2]} 57.
f4 {[%clk 0:00:19.9]} 57... Ne3+ {[%clk 0:00:04.9]} 58. Kf3 {[%clk 0:00:20]}
58... Nxd5 {[%clk 0:00:05.8]} 59. Ra3 {[%clk 0:00:20.1]} 59... c6 {[%clk
0:00:06.1]} 60. Rd3 {[%clk 0:00:20]} 60... b5 {[%clk 0:00:05.7]} 61. g4 {[%clk
0:00:19.6]} 61... Re3+ {[%clk 0:00:05.8]} 62. Rxe3 {[%clk 0:00:19.7]} 62... Nxe3
{[%clk 0:00:06.7]} 63. Kxe3 {[%clk 0:00:20.4]} 63... fxg4 {[%clk 0:00:07]} 64.
Ke4 {[%clk 0:00:21.1]} 64... g3 {[%clk 0:00:07.2]} 65. Kf3 {[%clk 0:00:21.4]}
65... Kf5 {[%clk 0:00:07.6]} 66. Kxg3 {[%clk 0:00:21.9]} 66... b4 {[%clk
0:00:08.5]} 67. h5 {[%clk 0:00:22.8]} 67... b3 {[%clk 0:00:08.8]} 68. hxg6
{[%clk 0:00:23.7]} 0-1